bitfinex/quotes_BTCUSD_20250422
["timestamp","ask_amount","ask_price","bid_price","bid_amount"]
[1745339921455,0.05892341,90716.0,90701.0,0.01102523]
[1745339921863,0.01102353,90715.0,90704.0,0.001]
[1745339922085,0.27939219,90716.0,90704.0,0.001]
[1745339922400,0.0479,90716.0,90702.0,0.23152736]
[1745339922540,0.0479,90716.0,90704.0,0.23152224]
[1745339922743,0.0479,90716.0,90706.0,0.23151701]
[1745339922942,0.0479,90716.0,90706.0,0.22049239]
[1745339923226,0.0479,90716.0,90705.0,0.22049453]
[1745339923353,0.0479,90716.0,90705.0,0.23151928]
[1745339923762,0.0479,90716.0,90706.0,0.22049221]
[1745339923967,0.2204707,90715.0,90702.0,0.002]
[1745339924168,0.05892341,90716.0,90702.0,0.002]
[1745339924593,0.01102365,90714.0,90702.0,0.002]
[1745339924791,0.23149653,90715.0,90702.0,0.01302511]
[1745339925002,0.0479,90716.0,90704.0,0.01102487]
[1745339925200,0.0479,90716.0,90704.0,0.23152076]
[1745339925534,0.0479,90716.0,90705.0,0.01102475]
[1745339925763,0.0479,90716.0,90704.0,0.23152076]
[1745339925937,0.0479,90716.0,90703.0,0.01102499]
[1745339926563,0.0479,90716.0,90704.0,0.001]
[1745339926800,0.0479,90716.0,90704.0,0.01202487]
[1745339926921,0.05892341,90716.0,90703.0,0.23152468]
[1745339927152,0.0479,90716.0,90703.0,0.23152468]
[1745339927348,0.0479,90716.0,90703.0,0.23252468]
[1745339927553,0.0479,90716.0,90703.0,0.01202499]
[1745339928193,0.05892341,90716.0,90703.0,0.01202499]
[1745339928397,0.05892341,90716.0,90704.0,0.01102487]
[1745339928398,0.0479,90716.0,90704.0,0.01102487]
[1745339928783,0.0489,90716.0,90704.0,0.01102487]
[1745339928984,0.0489,90716.0,90706.0,0.01102462]
[1745339929190,0.05992341,90716.0,90703.0,0.001]
[1745339929365,0.05992341,90716.0,90702.0,0.01102511]
[1745339929773,0.06192341,90716.0,90702.0,0.01102511]
[1745339930192,0.05992341,90716.0,90701.0,0.01102523]
[1745339930328,0.01102353,90715.0,90702.0,0.01102511]
[1745339930527,0.0489,90716.0,90705.0,0.01102475]
[1745339931128,0.0479,90716.0,90707.0,0.23151458]
[1745339931329,0.0499,90716.0,90710.0,0.23150688]
[1745339931530,0.0499,90716.0,90708.0,0.22048568]
[1745339931901,0.0489,90716.0,90708.0,0.23151006]
[1745339932101,0.0509,90716.0,90709.0,0.22048501]
[1745339932295,0.0489,90716.0,90709.0,0.01102426]
[1745339932501,0.0489,90716.0,90710.0,0.23150653]
[1745339932649,0.0509,90716.0,90711.0,0.01102402]
[1745339932851,0.0529,90716.0,90711.0,0.01102402]
[1745339933053,0.0559,90716.0,90708.0,0.2315118]
[1745339933298,0.0479,90716.0,90709.0,0.01102426]
[1745339933486,0.0479,90716.0,90712.0,0.01102389]
[1745339933718,0.0509,90716.0,90710.0,0.01102414]
[1745339933936,0.0509,90716.0,90709.0,0.01102426]
[1745339934132,0.0479,90716.0,90708.0,0.01102438]
[1745339934346,0.0479,90716.0,90707.0,0.0110245]
[1745339934590,0.0509,90716.0,90708.0,0.01102438]
[1745339934799,0.0539,90716.0,90707.0,0.0110245]
[1745339934995,0.0509,90716.0,90708.0,0.01102438]
[1745339935213,0.0509,90716.0,90706.0,0.23151661]
[1745339935405,0.0509,90716.0,90707.0,0.0110245]
[1745339935406,0.0539,90716.0,90707.0,0.0110245]
[1745339935650,0.0539,90716.0,90708.0,0.01102438]
[1745339935880,0.0509,90716.0,90707.0,0.23151443]
[1745339936099,0.0529,90716.0,90707.0,0.0110245]
[1745339936340,0.0499,90716.0,90707.0,0.0110245]
[1745339936554,0.0529,90716.0,90707.0,0.0110245]
[1745339936938,0.0499,90716.0,90707.0,0.0110245]
[1745339937367,0.0529,90716.0,90706.0,0.23151661]
[1745339937704,0.0529,90716.0,90706.0,0.01102462]
[1745339937929,0.0529,90716.0,90707.0,0.0110245]
[1745339938259,0.0509,90716.0,90707.0,0.0110245]
[1745339938522,0.0529,90716.0,90709.0,0.01102426]
[1745339939030,0.0499,90716.0,90709.0,0.01102426]
[1745339939232,0.002,90716.0,90713.0,0.01102377]
[1745339939435,0.0108542,90717.0,90714.0,0.01102365]
[1745339939631,0.002,90716.0,90714.0,0.01102365]
[1745339939874,0.004,90716.0,90714.0,0.01102365]
[1745339940141,0.004,90716.0,90715.0,0.2204707]
[1745339940374,0.0108542,90717.0,90714.0,0.23149668]
[1745339940591,0.0108542,90717.0,90710.0,0.01102414]
[1745339940592,0.0108542,90717.0,90711.0,0.2315043]
[1745339940751,0.0108542,90717.0,90712.0,0.01102389]
[1745339940955,0.002,90716.0,90713.0,0.01102377]
[1745339941171,0.002,90716.0,90712.0,0.01102389]
[1745339941735,0.005,90716.0,90713.0,0.01102377]
[1745339942066,0.002,90716.0,90713.0,0.01102377]
[1745339942272,0.002,90716.0,90713.0,0.23149861]
[1745339942599,0.0108542,90717.0,90714.0,0.01102365]
[1745339942951,0.002,90716.0,90714.0,0.01102365]
[1745339943743,0.002,90716.0,90715.0,0.22046851]
[1745339943969,0.002,90716.0,90712.0,0.22832533]
[1745339944502,0.002,90716.0,90713.0,0.01102377]
[1745339944705,0.0108542,90717.0,90713.0,0.01102377]
[1745339944915,0.0128542,90717.0,90712.0,0.00784784]
[1745339945139,0.0108542,90717.0,90713.0,0.23149881]
[1745339945544,0.002,90716.0,90712.0,0.00784784]
[1745339945750,0.0108542,90717.0,90714.0,0.01102365]
[1745339945925,0.003,90716.0,90714.0,0.23149561]
[1745339946128,0.003,90716.0,90715.0,0.2204707]
[1745339946322,0.003,90716.0,90714.0,0.23149561]
[1745339946525,0.0108542,90717.0,90714.0,0.23149561]
[1745339946722,0.004,90716.0,90715.0,0.2204707]
[1745339947328,0.002,90716.0,90715.0,0.2204707]
[1745339947533,0.005,90716.0,90715.0,0.2194707]
[1745339947960,0.003,90716.0,90715.0,0.2194707]
[1745339948340,0.006,90716.0,90715.0,0.2194707]
[1745339949068,0.003,90716.0,90715.0,0.2194707]
[1745339949263,0.0534,90716.0,90698.0,0.01173686]
[1745339949447,0.0534,90716.0,90701.0,0.01102523]
[1745339949641,0.06442341,90716.0,90701.0,0.23152953]
[1745339949868,0.01102365,90714.0,90698.0,0.02256117]
[1745339950067,0.06442341,90716.0,90698.0,0.23153519]
[1745339950385,0.01102365,90714.0,90701.0,0.01102523]
[1745339950585,0.01102353,90715.0,90701.0,0.01102523]
[1745339951174,0.0474,90716.0,90704.0,0.23152059]
[1745339951394,0.0474,90716.0,90705.0,0.01102475]
[1745339951602,0.0474,90716.0,90704.0,0.01102487]
[1745339951821,0.0474,90716.0,90705.0,0.01102475]
[1745339952129,0.0474,90716.0,90704.0,0.23152175]
[1745339952130,0.0474,90716.0,90704.0,0.01102487]
[1745339952337,0.01102353,90715.0,90702.0,0.22050127]
[1745339952539,0.01102365,90714.0,90701.0,0.01102523]
[1745339952790,0.01102365,90714.0,90700.0,0.23153142]
[1745339952966,0.01102365,90714.0,90701.0,0.01102523]
[1745339953142,0.01102377,90713.0,90699.0,0.23153328]
[1745339953337,0.23149716,90714.0,90700.0,0.01102535]
[1745339953545,0.23149716,90714.0,90701.0,0.01102523]
[1745339953945,0.01102365,90714.0,90701.0,0.01102523]
[1745339954151,0.01102353,90715.0,90702.0,0.01102511]
[1745339954338,0.001,90715.0,90702.0,0.01102511]
[1745339954536,0.2788939,90716.0,90702.0,0.01102511]
[1745339954742,0.01202365,90714.0,90701.0,0.01102523]
[1745339954937,0.01102365,90714.0,90701.0,0.01102523]
[1745339955138,0.01102377,90713.0,90698.0,0.02272411]
[1745339955338,0.0468,90711.0,90698.0,0.0110256]
[1745339955544,0.0468,90711.0,90698.0,0.2315373]
[1745339955792,0.0110245,90707.0,90698.0,0.01135865]
[1745339955969,0.23150699,90710.0,90698.0,0.01135865]
[1745339955970,0.05982414,90710.0,90698.0,0.01135865]
[1745339956138,0.0488,90710.0,90697.0,0.01102572]
[1745339956341,0.05982414,90710.0,90696.0,0.01102584]
[1745339956691,0.0488,90710.0,90698.0,0.001]
[1745339956987,0.23150954,90709.0,90698.0,0.001]
[1745339957153,0.23150954,90709.0,90695.0,0.01102596]
[1745339957490,0.0488,90710.0,90698.0,0.001]
[1745339957698,0.0488,90710.0,90698.0,0.0110256]
[1745339957860,0.0488,90710.0,90698.0,0.0120256]
[1745339958059,0.0488,90710.0,90698.0,0.0110256]
[1745339958260,0.0488,90710.0,90697.0,0.23153796]
[1745339958465,0.0488,90710.0,90698.0,0.0110256]
[1745339958866,0.0488,90710.0,90698.0,0.0120256]
[1745339959094,0.0488,90710.0,90698.0,0.23353562]
[1745339959301,0.0488,90710.0,90699.0,0.01102547]
[1745339959700,0.0488,90710.0,90700.0,0.01102535]
[1745339959903,0.0488,90710.0,90699.0,0.22050901]
[1745339960177,0.0488,90710.0,90699.0,0.01102547]
[1745339960933,0.0488,90710.0,90700.0,0.01102535]
[1745339961488,0.0488,90710.0,90700.0,0.23153027]
[1745339961899,0.0488,90710.0,90701.0,0.23152988]
[1745339962225,0.0488,90710.0,90700.0,0.01102535]
[1745339962433,0.0488,90710.0,90701.0,0.01102523]
[1745339962634,0.0468,90711.0,90710.0,0.22048285]
[1745339962976,0.049,90715.0,90710.0,0.22048182]
[1745339963178,0.0108542,90717.0,90714.0,0.22047313]
[1745339963381,0.0108542,90717.0,90716.0,0.22046827]
[1745339963606,0.0108542,90717.0,90715.0,0.22047001]
[1745339963792,0.0108542,90717.0,90716.0,0.22046827]
[1745339964656,0.0108542,90717.0,90715.0,0.22047001]
[1745339964862,0.0128542,90717.0,90716.0,0.22046827]
[1745339965199,0.0108542,90717.0,90715.0,0.22047001]
[1745339965339,0.0128542,90717.0,90715.0,0.22047001]
[1745339965542,0.0128542,90717.0,90716.0,0.22046827]
[1745339966313,0.0148542,90717.0,90716.0,0.22046827]
[1745339966917,0.0128542,90717.0,90716.0,0.22046827]
[1745339967213,0.0128542,90717.0,90715.0,0.22047023]
[1745339967828,0.0148542,90717.0,90715.0,0.22047023]
[1745339968034,0.0128542,90717.0,90715.0,0.22047023]
[1745339968379,0.0148542,90717.0,90716.0,0.22046827]
[1745339968581,0.0148542,90717.0,90715.0,0.22047023]
[1745339968812,0.0148542,90717.0,90716.0,0.22046827]
[1745339969186,0.0128542,90717.0,90715.0,0.22047023]
[1745339969391,0.0128542,90717.0,90716.0,0.22046827]
[1745339969602,0.0148542,90717.0,90716.0,0.22046827]
[1745339969959,0.0148542,90717.0,90715.0,0.22047023]
[1745339970113,0.0148542,90717.0,90716.0,0.22046827]
[1745339970511,0.0128542,90717.0,90716.0,0.22046827]
[1745339970718,0.0128542,90717.0,90713.0,0.22047542]
[1745339970925,0.0148542,90717.0,90716.0,0.22046827]
[1745339971456,0.0128542,90717.0,90716.0,0.22046827]
[1745339971661,0.0108542,90717.0,90716.0,0.22046827]
[1745339971860,0.0128542,90717.0,90715.0,0.22047064]
[1745339972093,0.0138542,90717.0,90715.0,0.22047064]
[1745339972265,0.0118542,90717.0,90715.0,0.22047064]
[1745339972465,0.0138542,90717.0,90715.0,0.22047064]
[1745339973015,0.0118542,90717.0,90715.0,0.22047064]
[1745339973271,0.0118542,90717.0,90716.0,0.22046827]
[1745339973515,0.0138542,90717.0,90716.0,0.22046827]
[1745339973892,0.01250352,90717.0,90716.0,0.22046827]
[1745339974103,0.01380495,90717.0,90716.0,0.22046827]
[1745339974253,0.01279286,90717.0,90716.0,0.22046827]
[1745339974441,0.0117424,90717.0,90716.0,0.22046827]
[1745339974646,0.0097424,90717.0,90716.0,0.22046827]
[1745339974846,0.0117424,90717.0,90716.0,0.22046827]
[1745339975872,0.0117424,90717.0,90715.0,0.22047064]
[1745339977011,0.0117424,90717.0,90713.0,0.23149796]
[1745339977146,0.0117424,90717.0,90714.0,0.23149633]
[1745339977369,0.0117424,90717.0,90708.0,0.35102438]
[1745339977579,0.0117424,90717.0,90707.0,0.3510245]
[1745339977787,0.0117424,90717.0,90707.0,0.57151251]
[1745339977788,0.0077424,90717.0,90707.0,0.57151251]
[1745339977991,0.0097424,90717.0,90707.0,0.34]
[1745339978331,0.0097424,90717.0,90707.0,0.3510245]
[1745339978536,0.0117424,90717.0,90707.0,0.3464955]
[1745339978745,0.0117424,90717.0,90707.0,0.56698548]
[1745339978910,0.0097424,90717.0,90708.0,0.01102438]
[1745339979314,0.0097424,90717.0,90707.0,0.3474955]
[1745339979523,0.0097424,90717.0,90707.0,0.001]
[1745339979941,0.0097424,90717.0,90708.0,0.01102438]
[1745339980117,0.0097424,90717.0,90709.0,0.01102426]
[1745339980885,0.0097424,90717.0,90708.0,0.01102438]
[1745339981109,0.0077424,90717.0,90708.0,0.35102438]
[1745339981481,0.0077424,90717.0,90708.0,0.34]
[1745339982135,0.0077424,90717.0,90707.0,0.34]
[1745339983298,0.0077424,90717.0,90705.0,0.35102475]
[1745339983505,0.0077424,90717.0,90707.0,0.22048924]
[1745339983706,0.0077424,90717.0,90707.0,0.22148924]
[1745339983898,0.0077424,90717.0,90707.0,0.001]
[1745339984103,0.0077424,90717.0,90707.0,0.341]
[1745339984692,0.0077424,90717.0,90707.0,0.3520245]
[1745339984895,0.0070479,90717.0,90707.0,0.3530245]
[1745339985097,0.00634202,90717.0,90707.0,0.3530245]
[1745339985296,0.00563353,90717.0,90707.0,0.3530245]
[1745339985452,0.00492945,90717.0,90707.0,0.3530245]
[1745339986203,0.00492945,90717.0,90707.0,0.342]
[1745339986505,0.00492945,90717.0,90707.0,0.3530245]
[1745339987281,0.00492945,90717.0,90707.0,0.002]
[1745339987685,0.00492945,90717.0,90707.0,0.0130245]
[1745339987899,0.00492945,90717.0,90706.0,0.23151656]
[1745339988246,0.00492945,90717.0,90707.0,0.0110245]
[1745339989052,0.00492945,90717.0,90706.0,0.23251656]
[1745339989206,0.00492945,90717.0,90707.0,0.23151404]
[1745339989415,0.00492945,90717.0,90708.0,0.01102438]
[1745339989613,0.00492945,90717.0,90707.0,0.0110245]
[1745339989818,0.00492945,90717.0,90707.0,0.001]
[1745339990029,0.00492945,90717.0,90708.0,0.01102438]
[1745339990422,0.00492945,90717.0,90707.0,0.22148882]
[1745339990423,0.0486,90716.0,90707.0,0.0120245]
[1745339990638,0.0486,90716.0,90707.0,0.001]
[1745339990833,0.0486,90716.0,90708.0,0.01102438]
[1745339991012,0.0486,90716.0,90707.0,0.0120245]
[1745339991443,0.0486,90716.0,90707.0,0.001]
[1745339991603,0.0486,90716.0,90707.0,0.0110245]
[1745339992798,0.00492945,90717.0,90715.0,0.2204707]
[1745339993014,0.00492945,90717.0,90716.0,0.22267276]
[1745339993421,0.00492945,90717.0,90716.0,0.22267268]
[1745339993836,0.00492945,90717.0,90716.0,0.22046827]
[1745339994245,0.00492945,90717.0,90716.0,0.67742863]
[1745339994445,0.00492945,90717.0,90716.0,0.73746506]
[1745339994757,0.00492945,90717.0,90716.0,0.73646506]
[1745339994983,0.00492945,90717.0,90716.0,0.73946506]
[1745339995597,0.00492945,90717.0,90716.0,0.74246506]
[1745339995804,0.00492945,90717.0,90716.0,0.73846506]
[1745339996025,0.00492945,90717.0,90716.0,0.73646506]
[1745339996234,0.00592945,90717.0,90716.0,0.74046506]
[1745339997101,0.00592945,90717.0,90716.0,0.74346506]
[1745339997306,0.00592945,90717.0,90716.0,0.79256506]
[1745339997938,0.0008474,90725.0,90724.0,0.56044883]
[1745339998140,0.00089811,90725.0,90724.0,0.67420477]
[1745340005930,0.04679811,90725.0,90716.0,0.01202341]
[1745340006173,0.04679811,90725.0,90717.0,0.01102329]
[1745340006361,0.04679811,90725.0,90716.0,0.01202341]
[1745340006763,0.04679811,90725.0,90717.0,0.01102329]
[1745340006965,0.01102244,90724.0,90716.0,0.001]
[1745340007171,0.23147204,90724.0,90716.0,0.001]
[1745340007315,0.00841088,90724.0,90716.0,0.001]
[1745340007521,0.01102244,90724.0,90716.0,0.001]
[1745340007737,0.04679811,90725.0,90716.0,0.001]
[1745340007955,0.04679811,90725.0,90724.0,0.001]
[1745340008381,0.04679811,90725.0,90716.0,0.001]
[1745340008598,0.04679811,90725.0,90722.0,0.01102268]
[1745340008759,0.04679811,90725.0,90721.0,0.23147429]
[1745340008974,0.04679811,90725.0,90722.0,0.23147534]
[1745340009168,0.00289811,90725.0,90724.0,0.22044883]
[1745340010195,0.00289811,90725.0,90724.0,0.67640909]
[1745340010385,0.00289811,90725.0,90724.0,0.67420477]
[1745340011249,0.00089811,90725.0,90724.0,0.11375594]
[1745340011475,0.00289811,90725.0,90724.0,0.11375594]
[1745340011696,0.00489811,90725.0,90724.0,0.11375594]
[1745340011883,0.00289811,90725.0,90724.0,0.11375594]
[1745340012200,0.00289811,90725.0,90724.0,0.33640897]
[1745340012406,0.00089811,90725.0,90724.0,0.33420477]
[1745340012636,0.00089811,90725.0,90724.0,0.33520477]
[1745340013980,0.00089811,90725.0,90724.0,0.33420477]
[1745340014359,0.00089811,90725.0,90722.0,0.35102268]
[1745340014591,0.00089811,90725.0,90717.0,0.01102329]
[1745340014794,0.00089811,90725.0,90719.0,0.23148159]
[1745340014999,0.0461,90724.0,90719.0,0.23148159]
[1745340015144,0.0937,90724.0,90719.0,0.01102304]
[1745340015349,0.0937,90724.0,90720.0,0.01102292]
[1745340015812,0.0937,90724.0,90716.0,0.01202341]
[1745340016030,0.0937,90724.0,90716.0,0.23249141]
[1745340016269,0.0947,90724.0,90716.0,0.23249141]
[1745340016470,0.0937,90724.0,90716.0,0.001]
[1745340016693,0.0937,90724.0,90716.0,0.01202341]
[1745340016920,0.0937,90724.0,90716.0,0.001]
[1745340017317,0.0937,90724.0,90717.0,0.23148888]
[1745340017541,0.0947,90724.0,90717.0,0.01102329]
[1745340017817,0.0947,90724.0,90716.0,0.001]
[1745340018238,0.0937,90724.0,90716.0,0.002]
[1745340021399,0.22046584,90717.0,90716.0,0.002]
[1745340021608,0.26656584,90717.0,90716.0,0.002]
[1745340022253,0.26656584,90717.0,90716.0,0.001]
[1745340022676,0.27056584,90717.0,90716.0,0.001]
[1745340023416,0.0501,90717.0,90716.0,0.001]
[1745340023645,0.0531,90717.0,90716.0,0.001]
[1745340023846,0.27356584,90717.0,90716.0,0.001]
[1745340024064,0.0501,90717.0,90716.0,0.001]
[1745340024471,0.0551,90717.0,90716.0,0.002]
[1745340025504,0.06343155,90717.0,90716.0,0.002]
[1745340028582,0.39765333,90717.0,90716.0,0.002]
[1745340028997,0.44415333,90717.0,90716.0,0.002]
[1745340030885,0.44415333,90717.0,90716.0,0.001]
[1745340031225,0.11102353,90715.0,90699.0,0.23153426]
[1745340031422,0.01102365,90714.0,90701.0,0.01102523]
[1745340032026,0.1,90715.0,90703.0,0.01102499]
[1745340032235,0.1,90715.0,90702.0,0.01102511]
[1745340032830,0.01102365,90714.0,90703.0,0.00903712]
[1745340033895,0.01102389,90712.0,90703.0,0.00903712]
[1745340034142,0.22047556,90713.0,90703.0,0.00903712]
[1745340034143,0.01102377,90713.0,90703.0,0.00903712]
[1745340034364,0.0484,90712.0,90701.0,0.01202523]
[1745340034575,0.0484,90712.0,90704.0,0.00902783]
[1745340035832,0.0494,90712.0,90704.0,0.01102783]
[1745340037337,0.0504,90712.0,90704.0,0.01102783]
[1745340037775,0.01102402,90711.0,90704.0,0.01102783]
[1745340037997,0.22048273,90711.0,90704.0,0.002]
[1745340038220,0.22048448,90710.0,90704.0,0.002]
[1745340038429,0.28190648,90712.0,90704.0,0.002]
[1745340038587,0.06142389,90712.0,90704.0,0.002]
[1745340038796,0.0494,90712.0,90699.0,0.01102547]
[1745340038987,0.001,90711.0,90700.0,0.00905208]
[1745340039575,0.1,90705.0,90700.0,0.00905208]
[1745340039778,0.23152972,90703.0,90700.0,0.00905208]
[1745340040003,0.01102499,90703.0,90689.0,0.23155941]
[1745340040178,0.01102499,90703.0,90687.0,0.34]
[1745340040179,0.01102523,90701.0,90692.0,0.01165805]
[1745340040352,0.10592487,90704.0,90693.0,0.0035231]
[1745340041542,0.10592487,90704.0,90694.0,0.00405958]
[1745340041742,0.0949,90704.0,90696.0,0.01102584]
[1745340041944,0.0465,90704.0,90701.0,0.01102523]
[1745340042143,0.1,90708.0,90702.0,0.01102511]
[1745340042350,0.412,90713.0,90702.0,0.01102511]
[1745340042351,0.412,90713.0,90705.0,0.01102475]
[1745340042555,0.1,90712.0,90709.0,0.01102426]
[1745340042806,0.412,90713.0,90709.0,0.01102426]
[1745340043161,0.00833155,90717.0,90707.0,0.22048856]
[1745340043388,0.11102292,90720.0,90708.0,0.01102438]
[1745340043639,0.01102317,90718.0,90704.0,0.01102487]
[1745340043840,0.01102353,90715.0,90702.0,0.23152712]
[1745340044042,0.01102353,90715.0,90699.0,0.23153407]
[1745340044043,0.01102365,90714.0,90699.0,0.01102547]
[1745340044244,0.23149862,90714.0,90699.0,0.23153506]
[1745340044444,0.01202377,90713.0,90700.0,0.01102535]
[1745340044756,0.01102377,90713.0,90701.0,0.01102523]
[1745340044965,0.23149862,90714.0,90701.0,0.01102523]
[1745340045264,0.001,90712.0,90702.0,0.0040269]
[1745340045468,0.01102377,90713.0,90702.0,0.0040269]
[1745340046506,0.23149985,90713.0,90702.0,0.0040269]
[1745340046705,0.0478,90710.0,90702.0,0.0040269]
[1745340047541,0.0478,90710.0,90697.0,0.01102572]
[1745340047745,0.0478,90710.0,90700.0,0.01102535]
[1745340048065,0.0488,90710.0,90700.0,0.01102535]
[1745340048427,0.0488,90710.0,90701.0,0.00748372]
[1745340048822,0.0478,90710.0,90701.0,0.00748372]
[1745340050802,0.0478,90710.0,90701.0,0.00848372]
[1745340051176,0.0478,90710.0,90701.0,0.01950895]
[1745340052159,0.2682847,90710.0,90701.0,0.00848372]
[1745340052366,0.0478,90710.0,90701.0,0.00848372]
[1745340055041,0.05882414,90710.0,90701.0,0.00848372]
[1745340056024,0.23150954,90709.0,90701.0,0.00848372]
[1745340056230,0.27930807,90710.0,90701.0,0.00848372]
[1745340056600,0.0478,90710.0,90701.0,0.00848372]
[1745340056802,0.26828304,90710.0,90701.0,0.00748372]
[1745340057006,0.0478,90710.0,90701.0,0.00748372]
[1745340057206,0.0478,90710.0,90701.0,0.00848372]
[1745340057956,0.01102438,90708.0,90701.0,0.00748372]
[1745340058149,0.23151171,90709.0,90701.0,0.00848372]
[1745340058761,0.23150958,90709.0,90701.0,0.00848372]
[1745340059576,0.23150958,90709.0,90701.0,0.00748372]
[1745340060101,0.23150958,90709.0,90701.0,0.00848372]
[1745340060251,0.27930706,90710.0,90701.0,0.00748372]
[1745340060452,0.0110245,90707.0,90701.0,0.00748372]
[1745340060662,0.01102438,90708.0,90701.0,0.00848372]
[1745340060919,0.01102438,90708.0,90701.0,0.001]
[1745340060920,0.2676023,90702.0,90701.0,0.001]
[1745340061071,0.32782741,90702.0,90692.0,0.01145646]
[1745340061283,0.10732511,90702.0,90688.0,0.23156194]
[1745340061463,0.32782844,90702.0,90689.0,0.01102669]
[1745340061662,0.0963,90702.0,90689.0,0.23156007]
[1745340061867,0.0963,90702.0,90701.0,0.001]
[1745340062194,0.0963,90702.0,90690.0,0.23155649]
[1745340062195,0.0963,90702.0,90693.0,0.0110262]
[1745340062388,0.0963,90702.0,90693.0,0.23154839]
[1745340062584,0.0963,90702.0,90693.0,0.0110262]
[1745340062809,0.0963,90702.0,90692.0,0.23155129]
[1745340063155,0.0963,90702.0,90694.0,0.01102608]
[1745340063353,0.0963,90702.0,90694.0,0.23154625]
[1745340063553,0.0963,90702.0,90693.0,0.0110262]
[1745340063760,0.0963,90702.0,90695.0,0.01102596]
[1745340063993,0.0963,90702.0,90696.0,0.22051689]
[1745340064117,0.0973,90702.0,90695.0,0.01102596]
[1745340064320,0.0973,90702.0,90696.0,0.0040196]
[1745340064517,0.0963,90702.0,90696.0,0.0040196]
[1745340064731,0.10732511,90702.0,90696.0,0.0040196]
[1745340064938,0.32782838,90702.0,90696.0,0.0040196]
[1745340065343,0.01102523,90701.0,90689.0,0.01102669]
[1745340065539,0.2315301,90701.0,90690.0,0.00401718]
[1745340065740,0.23154416,90696.0,90690.0,0.00401718]
[1745340066073,0.23154416,90696.0,90688.0,0.01149607]
[1745340066074,0.23153558,90699.0,90688.0,0.01149607]
[1745340066431,0.01102547,90699.0,90689.0,0.00349008]
[1745340066699,0.0973,90702.0,90687.0,0.01102693]
[1745340066824,0.23153301,90700.0,90690.0,0.00850241]
[1745340067027,0.01109124,90700.0,90688.0,0.01102681]
[1745340067230,0.01109124,90700.0,90688.0,0.002]
[1745340067431,6.589e-05,90700.0,90689.0,0.0034923]
[1745340067888,6.589e-05,90700.0,90690.0,0.001]
[1745340068435,6.589e-05,90700.0,90691.0,0.00750705]
[1745340070302,0.23155065,90694.0,90691.0,0.00750705]
[1745340070504,0.4386,90692.0,90691.0,0.00750705]
[1745340070707,0.55235594,90692.0,90691.0,0.001]
[1745340071630,0.55235594,90692.0,90691.0,0.003]
[1745340071979,0.1,90681.0,90680.0,0.0033237]
[1745340072180,0.1499,90681.0,90680.0,0.0033237]
[1745340072382,0.16092766,90681.0,90665.0,0.22059229]
[1745340072580,0.1499,90681.0,90668.0,0.22058359]
[1745340072786,0.1499,90681.0,90670.0,0.22057991]
[1745340073120,0.15812746,90681.0,90668.0,0.23161423]
[1745340073335,0.15812746,90681.0,90671.0,0.0022503]
[1745340073572,0.16212746,90681.0,90668.0,0.22058499]
[1745340073697,0.39370886,90681.0,90672.0,0.0022503]
[1745340073891,0.22056336,90677.0,90672.0,0.0022503]
[1745340074097,0.01102803,90678.0,90664.0,0.01102973]
[1745340074298,0.17515512,90681.0,90665.0,0.0040571]
[1745340074505,0.01102803,90678.0,90665.0,0.00644722]
[1745340074703,0.26926309,90677.0,90665.0,0.00644722]
[1745340074909,0.22056612,90676.0,90672.0,0.001]
[1745340075104,0.2315941,90676.0,90672.0,0.001]
[1745340075304,0.23159917,90675.0,90672.0,0.001]
[1745340075509,0.0499,90673.0,90672.0,0.001]
[1745340075750,0.57565594,90673.0,90672.0,0.001]
[1745340075907,0.79622876,90673.0,90672.0,0.001]
[1745340076306,0.11102924,90668.0,90663.0,0.0004238]
[1745340076559,0.11102924,90668.0,90665.0,0.001]
[1745340076798,0.22058742,90667.0,90665.0,0.001]
[1745340077001,0.33161491,90668.0,90665.0,0.001]
[1745340077204,0.01102937,90667.0,90663.0,0.0004238]
[1745340077443,0.2205938,90665.0,90663.0,0.0014238]
[1745340077641,0.22059472,90664.0,90663.0,0.00149989]
[1745340077843,0.22059472,90664.0,90663.0,0.00049989]
[1745340079214,0.2205938,90665.0,90663.0,0.00049989]
[1745340079398,0.22059472,90664.0,90663.0,0.00049989]
[1745340079600,0.22159472,90664.0,90663.0,0.00049989]
[1745340080211,0.27249472,90664.0,90663.0,0.00149989]
[1745340080414,1.30070271,90664.0,90663.0,0.00149989]
[1745340081254,1.31524356,90664.0,90663.0,0.00149989]
[1745340081669,1.31424356,90664.0,90663.0,0.00049989]
[1745340081895,1.31324356,90664.0,90663.0,0.00049989]
[1745340082181,1.31624356,90664.0,90663.0,0.00049989]
[1745340082392,1.31324356,90664.0,90663.0,0.00049989]
[1745340082770,1.31724356,90664.0,90663.0,0.00049989]
[1745340083349,1.32024356,90664.0,90663.0,0.00149989]
[1745340083657,1.31724356,90664.0,90663.0,0.00049989]
[1745340084047,1.32124356,90664.0,90663.0,0.00149989]
[1745340084390,1.19295066,90664.0,90663.0,0.00149989]
[1745340086243,1.29295066,90664.0,90663.0,0.00149989]
[1745340086452,1.30749151,90664.0,90663.0,0.00149989]
[1745340086654,1.30849151,90664.0,90663.0,0.00149989]
[1745340087074,1.30449151,90664.0,90663.0,0.00049989]
[1745340087280,1.41824356,90664.0,90663.0,0.00049989]
[1745340087483,1.42124356,90664.0,90663.0,0.00149989]
[1745340087688,1.42724356,90664.0,90663.0,0.00249989]
[1745340088311,1.42724356,90664.0,90663.0,1e-08]
[1745340088742,0.57514287,90661.0,90660.0,0.002]
[1745340088942,0.57514287,90661.0,90651.0,0.005]
[1745340088943,0.57516477,90652.0,90651.0,0.005]
[1745340089055,0.89884071,90652.0,90651.0,0.00013798]
[1745340090207,1.31184071,90652.0,90651.0,0.00013798]
[1745340090421,1.42559276,90652.0,90651.0,0.00013798]
[1745340090800,1.52959276,90652.0,90651.0,0.00113798]
[1745340091269,1.53159276,90652.0,90651.0,0.00113798]
[1745340091454,1.41684071,90652.0,90651.0,0.00113798]
[1745340091654,1.39150624,90652.0,90651.0,0.00013798]
[1745340091857,1.17262624,90652.0,90651.0,0.00113798]
[1745340092030,0.62832638,90652.0,90651.0,0.00113798]
[1745340092441,0.62632638,90652.0,90651.0,0.00113798]
[1745340092911,0.83308639,90652.0,90651.0,0.00113798]
[1745340093104,0.74508232,90652.0,90651.0,0.00113798]
[1745340096810,0.83888232,90652.0,90651.0,0.00113798]
[1745340097948,1.17888232,90652.0,90651.0,0.00113798]
[1745340098149,1.19342317,90652.0,90651.0,0.00113798]
[1745340098362,1.30717522,90652.0,90651.0,0.00113798]
[1745340098735,0.32067261,90632.0,90631.0,0.005]